fUST/lending_fUST_20250531
["ID","MTS","AMOUNT","RATE_DAILY","PERIOD"]
[363328252,1748676640710,-430.0,0.0001863,2]
[363328253,1748676640719,-430.0,0.0001863,2]
[363328254,1748676640728,-618.07,0.0001863,2]
[363328255,1748676640738,-699.2,0.0001863,2]
[363328256,1748676640747,-1237.53,0.0001863,2]
[363328257,1748676640756,-430.0,0.0001863,2]
[363328258,1748676640765,-1471.72,0.0001863,2]
[363328259,1748676640775,-1692.96,0.0001863,2]
[363328260,1748676640784,-430.0,0.0001863,2]
[363328261,1748676640794,-430.0,0.0001863,2]
[363328262,1748676640804,-1014.98,0.0001863,2]
[363328263,1748676640814,-1240.81,0.0001863,2]
[363328264,1748676640823,-602.09,0.0001863,2]
[363328265,1748676640832,-430.0,0.0001863,2]
[363328266,1748676640841,-561.45078939,0.0001863,2]
[363328267,1748676640850,-4949.7,0.0001863,2]
[363328268,1748676640859,-456.21,0.0001863,2]
[363328269,1748676640869,-889.6,0.0001863,2]
[363328270,1748676640878,-613.13,0.0001863,2]
[363328271,1748676640887,-430.0,0.0001863,2]
[363328272,1748676640896,-548.65,0.0001863,2]
[363328273,1748676640906,-430.0,0.0001863,2]
[363328274,1748676640915,-430.0,0.0001863,2]
[363328275,1748676640924,-722.57,0.0001863,2]
[363328276,1748676640933,-1150.08,0.0001863,2]
[363328277,1748676640943,-1528.78,0.0001863,2]
[363328278,1748676640953,-160.0,0.00018677,2]
[363328279,1748676640963,-1963.34401357,0.00018693,2]
[363328280,1748676640972,-13547.38399876,0.00018783,2]
[363328281,1748676640982,-212.77096907,0.00018891,2]
[363328282,1748676640993,-160.0,0.00018891,2]
[363328283,1748676641002,-160.0,0.00018891,2]
[363328284,1748676641014,-842.5625,0.00018891,2]
[363328285,1748676641024,-423.4608169,0.00018891,2]
[363328286,1748676641035,-160.0,0.00018891,2]
[363328287,1748676641046,-229.3428821,0.00018891,2]
[363328288,1748676641062,-160.0,0.00018902,2]
[363328289,1748676641072,-151.0,0.00018904,2]
[363328290,1748676641082,-376.864955,0.00018904,2]
[363328291,1748676641091,-376.864955,0.00018904,2]
[363328292,1748676641101,-430.0,0.00018904,2]
[363328293,1748676641110,-430.0,0.00018904,2]
[363328294,1748676641120,-430.0,0.00018904,2]
[363328295,1748676641130,-430.0,0.00018904,2]
[363328296,1748676641141,-430.0,0.00018904,2]
[363328297,1748676641150,-618.07,0.00018904,2]
[363328298,1748676641160,-699.2,0.00018904,2]
[363328299,1748676641170,-1237.53,0.00018904,2]
[363328300,1748676641179,-430.0,0.00018904,2]
[363328301,1748676641189,-1471.72,0.00018904,2]
[363328302,1748676641199,-1692.96,0.00018904,2]
[363328303,1748676641212,-430.0,0.00018904,2]
[363328304,1748676641221,-430.0,0.00018904,2]
[363328305,1748676641231,-1014.98,0.00018904,2]
[363328306,1748676641241,-1240.81,0.00018904,2]
[363328307,1748676641250,-602.09,0.00018904,2]
[363328308,1748676641260,-430.0,0.00018904,2]
[363328309,1748676641269,-4949.7,0.00018904,2]
[363328310,1748676641279,-456.21,0.00018904,2]
[363328311,1748676641290,-889.6,0.00018904,2]
[363328312,1748676641300,-613.13,0.00018904,2]
[363328313,1748676641309,-348.28312997,0.00018904,2]
[363328314,1748676641320,-548.65,0.00018904,2]
[363328315,1748676641329,-430.0,0.00018904,2]
[363328316,1748676641339,-430.0,0.00018904,2]
[363328317,1748676641348,-722.57,0.00018904,2]
[363328318,1748676641357,-1150.08,0.00018904,2]
[363328319,1748676641367,-1528.78,0.00018904,2]
[363328320,1748676641377,-1963.34401357,0.00019003,2]
[363328321,1748676641387,-304.76580013,0.00019056,2]
[363328322,1748676641397,-430.0,0.00019178,2]
[363328323,1748676641406,-430.0,0.00019178,2]
[363328324,1748676641415,-411.19,0.00019178,2]
[363328325,1748676641425,-430.0,0.00019178,2]
[363328326,1748676641435,-430.0,0.00019178,2]
[363328327,1748676641444,-618.07,0.00019178,2]
[363328328,1748676641454,-699.2,0.00019178,2]
[363328329,1748676641464,-1237.53,0.00019178,2]
[363328330,1748676641473,-430.0,0.00019178,2]
[363328331,1748676641483,-1471.72,0.00019178,2]
[363328332,1748676641492,-1692.96,0.00019178,2]
[363328333,1748676641502,-430.0,0.00019178,2]
[363328334,1748676641511,-430.0,0.00019178,2]
[363328335,1748676641520,-1014.98,0.00019178,2]
[363328336,1748676641530,-1240.81,0.00019178,2]
[363328337,1748676641539,-602.09,0.00019178,2]
[363328338,1748676641549,-430.0,0.00019178,2]
[363328339,1748676641558,-4949.7,0.00019178,2]
[363328340,1748676641568,-456.21,0.00019178,2]
[363328341,1748676641577,-889.6,0.00019178,2]
[363328342,1748676641587,-613.13,0.00019178,2]
[363328343,1748676641597,-548.65,0.00019178,2]
[363328344,1748676641607,-430.0,0.00019178,2]
[363328345,1748676641616,-430.0,0.00019178,2]
[363328346,1748676641625,-722.57,0.00019178,2]
[363328347,1748676641634,-1150.08,0.00019178,2]
[363328348,1748676641643,-1528.78,0.00019178,2]
[363328349,1748676641652,-525.65270034,0.00019178,2]
[363328350,1748676641662,-525.65270034,0.00019178,2]
[363328351,1748676641671,-525.65270034,0.00019178,2]
[363328352,1748676641681,-525.65270034,0.00019178,2]
[363328353,1748676641690,-525.65270034,0.00019178,2]
[363328354,1748676641699,-525.65270034,0.00019178,2]
[363328355,1748676641708,-525.65270034,0.00019178,2]
[363328356,1748676641719,-525.65270034,0.00019178,2]
[363328357,1748676641729,-525.65270034,0.00019178,2]
[363328358,1748676641739,-525.65270034,0.00019178,2]
[363328359,1748676641748,-525.65270034,0.00019178,2]
[363328360,1748676641758,-525.65270034,0.00019178,2]
[363328361,1748676641767,-525.65270034,0.00019178,2]
[363328362,1748676641777,-525.65270034,0.00019178,2]
[363328363,1748676641787,-525.65270034,0.00019178,2]
[363328364,1748676641797,-525.65270034,0.00019178,2]
[363328365,1748676641807,-525.65270034,0.00019178,2]
[363328366,1748676641817,-525.65270034,0.00019178,2]
[363328367,1748676641826,-525.65270034,0.00019178,2]
[363328368,1748676641836,-525.65270034,0.00019178,2]
[363328369,1748676641846,-525.65270034,0.00019178,2]
[363328370,1748676641855,-525.65270034,0.00019178,2]
[363328371,1748676641865,-525.65270034,0.00019178,2]
[363328372,1748676641874,-525.65270034,0.00019178,2]
[363328373,1748676641883,-525.65270034,0.00019178,2]
[363328374,1748676641893,-525.65270034,0.00019178,2]
[363328375,1748676641903,-525.65270034,0.00019178,2]
[363328376,1748676641912,-525.65270034,0.00019178,2]
[363328377,1748676641922,-525.65270034,0.00019178,2]
[363328378,1748676641932,-525.65270034,0.00019178,2]
[363328379,1748676641941,-525.65270034,0.00019178,2]
[363328380,1748676641952,-525.65270034,0.00019178,2]
[363328381,1748676641969,-525.65270034,0.00019178,2]
[363328382,1748676641979,-525.65270034,0.00019178,2]
[363328383,1748676641988,-525.65270034,0.00019178,2]
[363328384,1748676641998,-525.65270034,0.00019178,2]
[363328385,1748676642008,-525.65270034,0.00019178,2]
[363328386,1748676642018,-525.65270034,0.00019178,2]
[363328387,1748676642036,-525.65270034,0.00019178,2]
[363328388,1748676642048,-525.65270034,0.00019178,2]
[363328389,1748676642057,-525.65270034,0.00019178,2]
[363328390,1748676642066,-525.65270034,0.00019178,2]
[363328391,1748676642076,-525.65270034,0.00019178,2]
[363328392,1748676642085,-525.65270034,0.00019178,2]
[363328393,1748676642095,-525.65270034,0.00019178,2]
[363328394,1748676642104,-525.65270034,0.00019178,2]
[363328395,1748676642116,-525.65270034,0.00019178,2]
[363328396,1748676642125,-525.65270034,0.00019178,2]
[363328397,1748676642135,-525.65270034,0.00019178,2]
[363328398,1748676642145,-525.65270034,0.00019178,2]
[363328399,1748676642153,-525.65270034,0.00019178,2]
[363328400,1748676642162,-525.65270034,0.00019178,2]
[363328401,1748676642172,-525.65270034,0.00019178,2]
[363328402,1748676642181,-358.747968,0.00019178,2]
[363328403,1748676642191,-296.662294,0.00019179,2]
[363328404,1748676642201,-296.662294,0.00019179,2]
[363328405,1748676642212,-151.0,0.00019179,2]
[363328406,1748676642222,-407.978989,0.00019179,2]
[363328407,1748676642232,-407.978989,0.00019179,2]
[363328408,1748676642242,-156.456511,0.00019179,2]
[363328409,1748676642253,-156.456511,0.00019179,2]
[363328410,1748676642263,-500.0,0.00019213,2]
[363328411,1748676642273,-500.0,0.00019213,2]
[363328412,1748676642283,-1100.0,0.0001926,2]
[363328413,1748676642293,-1963.34401357,0.00019314,2]
[363328414,1748676642303,-151.0,0.00019329,2]
[363328415,1748676642312,-151.0,0.00019329,2]
[363328416,1748676642321,-151.0,0.00019329,2]
[363328417,1748676642332,-162.637626,0.00019329,2]
[363328418,1748676642340,-151.0,0.00019329,2]
[363328419,1748676642349,-151.0,0.00019329,2]
[363328420,1748676642360,-151.0,0.00019329,2]
[363328421,1748676642369,-2473.478844,0.00019329,2]
[363328422,1748676642380,-2473.478844,0.00019329,2]
[363328423,1748676642391,-151.0,0.00019329,2]
[363328424,1748676642400,-100000.0,0.00019329,2]
[363328425,1748676642409,-250.0,0.00019389,2]
[363328426,1748676642419,-500.0,0.0001944,2]
[363328427,1748676642430,-823.0,0.0001944,2]
[363328428,1748676642442,-208.01709331,0.00019451,2]
[363328429,1748676642451,-430.0,0.00019452,2]
[363328430,1748676642461,-430.0,0.00019452,2]
[363328431,1748676642470,-430.0,0.00019452,2]
[363328432,1748676642479,-529.54,0.00019452,2]
[363328433,1748676642488,-151.0,0.00019452,2]
[363328434,1748676642498,-151.0,0.00019452,2]
[363328435,1748676642507,-618.07,0.00019452,2]
[363328436,1748676642516,-699.2,0.00019452,2]
[363328437,1748676642526,-1237.53,0.00019452,2]
[363328438,1748676642535,-399.41330177,0.00019452,2]
[363328439,1748676642545,-1471.72,0.00019452,2]
[363328440,1748676642555,-2420.97245,0.00019452,2]
[363328441,1748676642564,-2420.97245,0.00019452,2]
[363328442,1748676642574,-1692.96,0.00019452,2]
[363328443,1748676642583,-430.0,0.00019452,2]
[363328444,1748676642593,-430.0,0.00019452,2]
[363328445,1748676642601,-1014.98,0.00019452,2]
[363328446,1748676642611,-1240.81,0.00019452,2]
[363328447,1748676642621,-602.09,0.00019452,2]
[363328448,1748676642631,-430.0,0.00019452,2]
[363328449,1748676642640,-4949.7,0.00019452,2]
[363328451,1748676642649,-456.21,0.00019452,2]
[363328452,1748676642659,-889.6,0.00019452,2]
[363328453,1748676642668,-613.13,0.00019452,2]
[363328454,1748676642677,-548.65,0.00019452,2]
[363328455,1748676642686,-430.0,0.00019452,2]
[363328456,1748676642695,-430.0,0.00019452,2]
[363328457,1748676642704,-722.57,0.00019452,2]
[363328458,1748676642714,-1150.08,0.00019452,2]
[363328459,1748676642723,-1528.78,0.00019452,2]
[363328460,1748676642732,-151.59258653,0.00019481,2]
[363328461,1748676642741,-500.0,0.00019488,2]
[363328462,1748676642751,-151.0,0.000195,2]
[363328463,1748676642760,-146616.182413,0.000195,2]
[363328464,1748676642770,-341.58993269,0.00019532,2]
[363328465,1748676642779,-500.0,0.00019571,2]
[363328466,1748676642788,-500.0,0.00019571,2]
[363328467,1748676642798,-500.0,0.00019571,2]
[363328468,1748676642808,-500.0,0.00019571,2]
[363328469,1748676642817,-152.339554,0.00019573,2]
[363328470,1748676642827,-151.0,0.00019573,2]
[363328471,1748676642836,-575.30694928,0.00019573,2]
[363328472,1748676642846,-500.0,0.00019573,2]
[363328473,1748676642855,-500.0,0.00019573,2]
[363328474,1748676642864,-500.0,0.00019587,2]
[363328475,1748676642874,-347.47889072,0.00019587,2]
[363328476,1748676642883,-500.0,0.00019587,2]
[363328477,1748676642892,-500.0,0.00019587,2]
[363328478,1748676642901,-500.0,0.00019587,2]
[363328479,1748676642911,-500.0,0.00019587,2]
[363328480,1748676642921,-500.0,0.00019587,2]
[363328481,1748676642930,-500.0,0.00019587,2]
[363328482,1748676642939,-500.0,0.00019587,2]
[363328483,1748676642948,-500.0,0.00019587,2]
[363328484,1748676642958,-500.0,0.00019587,2]
[363328485,1748676642968,-600.0,0.00019587,2]
[363328486,1748676642977,-500.0,0.00019587,2]
[363328487,1748676642986,-500.0,0.00019587,2]
[363328488,1748676642996,-500.0,0.00019587,2]
[363328489,1748676643005,-500.0,0.00019587,2]
[363328490,1748676643015,-500.0,0.00019587,2]
[363328491,1748676643024,-1788.53,0.000196,2]
[363328492,1748676643034,-1963.34401357,0.00019624,2]
[363328493,1748676643043,-151.0,0.00019726,2]
[363328494,1748676643053,-470.01260182,0.00019726,2]
[363328495,1748676643063,-430.0,0.00019726,2]
[363328496,1748676643072,-430.0,0.00019726,2]
[363328497,1748676643082,-618.07,0.00019726,2]
[363328498,1748676643091,-699.2,0.00019726,2]
[363328499,1748676643101,-1237.53,0.00019726,2]
[363328500,1748676643110,-1471.72,0.00019726,2]
[363328501,1748676643119,-1692.96,0.00019726,2]
[363328502,1748676643129,-430.0,0.00019726,2]
[363328503,1748676643138,-430.0,0.00019726,2]
[363328504,1748676643147,-1014.98,0.00019726,2]
[363328505,1748676643157,-1240.81,0.00019726,2]
[363328506,1748676643166,-602.09,0.00019726,2]
[363328507,1748676643176,-430.0,0.00019726,2]
[363328508,1748676643185,-4949.7,0.00019726,2]
[363328509,1748676643195,-456.21,0.00019726,2]
[363328510,1748676643206,-889.6,0.00019726,2]
[363328511,1748676643215,-613.13,0.00019726,2]
[363328512,1748676643224,-548.65,0.00019726,2]
[363328513,1748676643234,-430.0,0.00019726,2]
[363328514,1748676643243,-514.12,0.00019726,2]
[363328515,1748676643252,-722.57,0.00019726,2]
[363328516,1748676643262,-1150.08,0.00019726,2]
[363328517,1748676643271,-1528.78,0.00019726,2]
[363328518,1748676643280,-154.280183,0.00019726,2]
[363328519,1748676643289,-376.864955,0.00019727,2]
[363328520,1748676643299,-376.864955,0.00019727,2]
[363328521,1748676643308,-500.0,0.00019729,2]
[363328522,1748676643318,-500.0,0.00019729,2]
[363328523,1748676643327,-500.0,0.00019729,2]
[363328524,1748676643336,-751.44409794,0.00019761,2]
[363328525,1748676643346,-1000.0,0.00019761,2]
[363328526,1748676643356,-151.0,0.000199,2]
[363328527,1748676643365,-519.284,0.0001992,2]
[363328528,1748676643375,-1963.34401357,0.00019934,2]
[363328529,1748676643384,-304.76580013,0.00019962,2]
[363328530,1748676643393,-501.11265055,0.00019988,2]
[363328531,1748676643402,-296.662294,0.0002,2]
[363328532,1748676643411,-296.662294,0.0002,2]
[363328533,1748676643420,-151.0,0.0002,2]
[363328534,1748676643430,-153.014895,0.0002,2]
[363328535,1748676643439,-407.978989,0.0002,2]
[363328536,1748676643448,-407.978989,0.0002,2]
[363328537,1748676643457,-151.0,0.0002,2]
[363328538,1748676643467,-156.456511,0.0002,2]
[363328539,1748676643476,-156.456511,0.0002,2]
[363328540,1748676643486,-385.104233,0.0002,2]
[363328541,1748676643495,-385.104233,0.0002,2]
[363328542,1748676643503,-310.432691,0.0002,2]
[363328543,1748676643512,-310.432691,0.0002,2]
[363328544,1748676643521,-430.0,0.0002,2]
[363328545,1748676643530,-188.022513,0.0002,2]
[363328546,1748676643539,-188.022513,0.0002,2]
[363328547,1748676643547,-430.0,0.0002,2]
[363328548,1748676643557,-695.623823,0.0002,2]
[363328549,1748676643567,-695.623823,0.0002,2]
[363328550,1748676643575,-618.07,0.0002,2]
[363328551,1748676643584,-699.2,0.0002,2]
[363328552,1748676643593,-1237.53,0.0002,2]
[363328553,1748676643601,-1471.72,0.0002,2]
[363328554,1748676643610,-1692.96,0.0002,2]
[363328555,1748676643619,-430.0,0.0002,2]
[363328556,1748676643627,-430.0,0.0002,2]
[363328557,1748676643636,-1014.98,0.0002,2]
[363328558,1748676643645,-1240.81,0.0002,2]
[363328559,1748676643654,-602.09,0.0002,2]
[363328560,1748676643663,-430.0,0.0002,2]
[363328561,1748676643676,-502.08399402,0.0002,2]
[363328562,1748676643685,-4949.7,0.0002,2]
[363328563,1748676643694,-456.21,0.0002,2]
[363328564,1748676643703,-6298.82403136,0.0002,2]
[363328565,1748676643713,-150.0006019,0.0002,7]
[363328566,1748676643722,-35483.5639356,0.0002,2]
[363328567,1748676643853,-889.6,0.0002,2]
[363328568,1748676643863,-613.13,0.0002,2]
[363328569,1748676643873,-548.65,0.0002,2]
[363328570,1748676643883,-430.0,0.0002,2]
[363328571,1748676643892,-4000.0,0.0002,4]
[363328572,1748676643902,-722.57,0.0002,2]
[363328573,1748676643911,-1150.08,0.0002,2]
[363328574,1748676643920,-1528.78,0.0002,2]
[363328575,1748676643930,-376.864955,0.00020001,2]
[363328576,1748676643939,-376.864955,0.00020001,2]
[363328577,1748676643949,-689.90908912,0.00020036,2]
[363328578,1748676643958,-1000.0,0.00020119,2]
[363328579,1748676643968,-1000.0,0.00020119,2]
[363328580,1748676643977,-1008.86377791,0.00020119,2]
[363328581,1748676643986,-1000.0,0.00020119,2]
[363328582,1748676643995,-1000.0,0.00020121,2]
[363328583,1748676644004,-1000.0,0.00020135,2]
[363328584,1748676644013,-502.33839711,0.00020135,2]
[363328585,1748676644023,-1000.0,0.00020135,2]
[363328586,1748676644032,-1000.0,0.00020135,2]
[363328587,1748676644042,-504.31260326,0.00020135,2]
[363328588,1748676644051,-1000.0,0.00020135,2]
[363328589,1748676644061,-1000.0,0.00020135,2]
[363328590,1748676644070,-1000.0,0.00020135,2]
[363328591,1748676644079,-1000.0,0.00020135,2]
[363328592,1748676644089,-1000.0,0.00020135,2]
[363328593,1748676644098,-1200.0,0.00020135,2]
[363328594,1748676644107,-1005.73727577,0.00020135,2]
[363328595,1748676644116,-1000.0,0.00020135,2]
[363328596,1748676644125,-1000.0,0.00020135,2]
[363328597,1748676644134,-160.0,0.00020229,3]
[363328598,1748676644143,-157.03337844,0.00020233,2]
[363328599,1748676644153,-1963.34401357,0.00020245,2]
[363328600,1748676644162,-587.0,0.00020263,2]
[363328601,1748676644171,-430.0,0.00020273,2]
[363328602,1748676644180,-430.0,0.00020273,2]
[363328603,1748676644197,-618.07,0.00020273,2]
[363328604,1748676644209,-699.2,0.00020273,2]
[363328605,1748676644222,-1237.53,0.00020273,2]
[363328606,1748676644231,-1471.72,0.00020273,2]
[363328607,1748676644242,-1692.96,0.00020273,2]
[363328608,1748676644251,-430.0,0.00020273,2]
[363328609,1748676644262,-430.0,0.00020273,2]
[363328610,1748676644271,-1014.98,0.00020273,2]
[363328611,1748676644280,-1240.81,0.00020273,2]
[363328612,1748676644289,-602.09,0.00020273,2]
[363328613,1748676644298,-430.0,0.00020273,2]
[363328614,1748676644308,-4949.7,0.00020273,2]
[363328615,1748676644318,-456.21,0.00020273,2]
[363328616,1748676644328,-889.6,0.00020273,2]
[363328617,1748676644338,-613.13,0.00020273,2]
[363328618,1748676644348,-548.65,0.00020273,2]
[363328619,1748676644358,-430.0,0.00020273,2]
[363328620,1748676644367,-722.57,0.00020273,2]
[363328621,1748676644376,-1150.08,0.00020273,2]
[363328622,1748676644385,-1528.78,0.00020273,2]
[363328623,1748676644395,-212.0,0.00020274,3]
[363328624,1748676644405,-1000.0,0.00020277,2]
[363328625,1748676644415,-1000.0,0.00020277,2]
[363328626,1748676644424,-1500.0,0.00020309,2]
[363328627,1748676644434,-1100.0,0.00020356,2]
[363328628,1748676644443,-207.4,0.00020391,2]
[363328629,1748676644453,-5000.0,0.00020391,2]
[363328630,1748676644462,-4892.79062675,0.00020391,2]
[363328631,1748676644471,-201.05851625,0.00020391,2]
[363328632,1748676644480,-151.0,0.000204,4]
[363328633,1748676644489,-430.0,0.00020547,2]
[363328634,1748676644498,-430.0,0.00020547,2]
[363328635,1748676644507,-618.07,0.00020547,2]
[363328636,1748676644516,-699.2,0.00020547,2]
[363328637,1748676644526,-1237.53,0.00020547,2]
[363328638,1748676644535,-1471.72,0.00020547,2]
[363328639,1748676644545,-1692.96,0.00020547,2]
[363328640,1748676644555,-430.0,0.00020547,2]
[363328641,1748676644566,-241.48606011,0.00020547,2]
[363328642,1748676644575,-151.0,0.00020547,2]
[363328643,1748676644584,-1014.98,0.00020547,2]
[363328644,1748676644594,-1240.81,0.00020547,2]
[363328645,1748676644604,-602.09,0.00020547,2]
[363328646,1748676644613,-430.0,0.00020547,2]
[363328647,1748676644623,-4949.7,0.00020547,2]
[363328648,1748676644632,-456.21,0.00020547,2]
[363328649,1748676644642,-889.6,0.00020547,2]
[363328650,1748676644651,-613.13,0.00020547,2]
[363328651,1748676644661,-548.65,0.00020547,2]
[363328652,1748676644670,-151.0,0.00020547,2]
[363328653,1748676644679,-430.0,0.00020547,2]
[363328654,1748676644688,-151.0,0.00020547,2]
[363328655,1748676644697,-2473.478844,0.00020547,2]
[363328656,1748676644706,-2473.478844,0.00020547,2]
[363328657,1748676644715,-722.57,0.00020547,2]
[363328658,1748676644724,-1150.08,0.00020547,2]
[363328659,1748676644734,-1528.78,0.00020547,2]
[363328660,1748676644743,-151.0,0.00020547,2]
[363328661,1748676644752,-1963.34401357,0.00020555,3]
[363328662,1748676644761,-934.14,0.000206,2]
[363328663,1748676644771,-8368.55319641,0.000206,2]
[363328664,1748676644790,-1533.61680359,0.000206,2]
[363328665,1748676644799,-151.0,0.000206,2]
[363328666,1748676644808,-151.0,0.000206,2]
[363328667,1748676644816,-1500.0,0.00020667,2]
[363328668,1748676644826,-621.09360266,0.00020667,2]
[363328669,1748676644835,-1500.0,0.00020667,2]
[363328670,1748676644844,-1069.42552681,0.00020669,2]
[363328671,1748676644853,-2075.80723278,0.00020683,2]
[363328672,1748676644862,-1063.89330973,0.00020683,2]
[363328673,1748676644871,-501.49859335,0.00020683,2]
[363328674,1748676644880,-1500.0,0.00020683,2]
[363328675,1748676644891,-1500.0,0.00020683,2]
[363328676,1748676644900,-1500.0,0.00020683,2]
[363328677,1748676644909,-1500.0,0.00020683,2]
[363328678,1748676644918,-163.5396541,0.00020683,2]
[363328679,1748676644927,-1221.01236043,0.00020683,2]
[363328680,1748676644936,-1800.0,0.00020683,2]
[363328681,1748676644945,-501.26369616,0.00020683,2]
[363328682,1748676644955,-1500.0,0.00020683,2]
[363328683,1748676644964,-593.6840161,0.00020707,2]
[363328684,1748676644973,-296.662294,0.00020821,2]
[363328685,1748676644983,-296.662294,0.00020821,2]
[363328686,1748676644994,-151.0,0.00020821,2]
[363328687,1748676645014,-407.978989,0.00020821,2]
[363328688,1748676645023,-407.978989,0.00020821,2]
[363328689,1748676645033,-156.456511,0.00020821,2]
[363328690,1748676645042,-156.456511,0.00020821,2]
[363328691,1748676645051,-430.0,0.00020821,2]
[363328692,1748676645061,-430.0,0.00020821,2]
[363328693,1748676645070,-151.0,0.00020821,2]
[363328694,1748676645079,-151.0,0.00020821,2]
[363328695,1748676645088,-618.07,0.00020821,2]
[363328696,1748676645098,-699.2,0.00020821,2]
[363328697,1748676645106,-1237.53,0.00020821,2]
[363328698,1748676645116,-1471.72,0.00020821,2]
[363328699,1748676645125,-2420.97245,0.00020821,2]
[363328700,1748676645134,-2420.97245,0.00020821,2]
[363328701,1748676645144,-1692.96,0.00020821,2]
[363328702,1748676645153,-430.0,0.00020821,2]
[363328703,1748676645163,-1014.98,0.00020821,2]
[363328704,1748676645172,-1240.81,0.00020821,2]
[363328705,1748676645182,-602.09,0.00020821,2]
[363328706,1748676645191,-374.59,0.00020821,2]
[363328707,1748676645201,-1203.42234266,0.00020821,2]
[363328714,1748676648566,-3746.27765734,0.00020821,2]
[363328715,1748676648575,-456.21,0.00020821,2]
[363328716,1748676648584,-889.6,0.00020821,2]
[363328717,1748676648593,-613.13,0.00020821,2]
[363328718,1748676648602,-548.65,0.00020821,2]
[363328719,1748676648612,-430.0,0.00020821,2]
[363328720,1748676648621,-722.57,0.00020821,2]
[363328721,1748676648630,-1150.08,0.00020821,2]
[363328722,1748676648639,-64.13577489,0.00020821,2]
[363328723,1748676648651,-1464.64422511,0.00020821,2]
[363328724,1748676648660,-1500.0,0.00020825,2]
[363328725,1748676648670,-1044.94703601,0.00020825,2]
[363328726,1748676648679,-345.9895388,0.00020838,20]
[363328727,1748676648689,-306.96069346,0.00020857,2]
[363328728,1748676648699,-1963.34401357,0.00020866,4]
[363328729,1748676648708,-5000.0,0.00020939,2]
[363328730,1748676648717,-593.6840161,0.00020992,2]
[363328731,1748676648726,-345.9895388,0.00020993,21]
[363328732,1748676648735,-1000.0,0.00020999,7]
[363328733,1748676648744,-5000.0,0.00021,2]
[363328734,1748676648754,-376.864955,0.0002106,2]
[363328735,1748676648763,-376.864955,0.0002106,2]
[363328736,1748676648772,-153.841363,0.00021091,5]
[363328737,1748676648782,-20238.59188762,0.00021094,2]
[363328738,1748676648793,-528.89709118,0.00021094,2]
[363328739,1748676648826,-430.0,0.00016712,2]
[363328740,1748676648835,-590.0,0.00021094,2]
[363328741,1748676648899,-578.45399973,0.00016986,2]
[363328742,1748676648908,-438.38,0.00018356,2]
[363328743,1748676648918,-321.14072168,0.0001863,2]
[363328744,1748676648996,-117.23927832,0.0001863,2]
[363328745,1748676649006,-123.7231711,0.00018904,2]
[363328746,1748676649018,-314.6568289,0.00018904,2]
[363328747,1748676649028,-438.38,0.00019178,2]
[363328748,1748676649037,-438.38,0.00019452,2]
[363328749,1748676649047,-438.38,0.00019726,2]
[363328750,1748676649056,-438.38,0.0002,2]
[363328751,1748676649066,-438.38,0.00020273,2]
[363328752,1748676649075,-438.38,0.00020547,2]
[363328753,1748676649084,-1151.75449562,0.00021094,2]
[363328754,1748676649308,-148.49958246,0.00021094,2]
[363328755,1748676649320,-824.95454347,0.00021094,2]
[363328756,1748676649391,-319.13849696,0.00016712,2]
[363328757,1748676649401,-438.38,0.00020821,2]
[363328758,1748676649410,-28911.72559459,0.00021094,2]